fUSD/lending_fUSD_20241121
["ID","MTS","AMOUNT","RATE_DAILY","PERIOD"]
[342901455,1732199449835,-3963.56,0.00041369,18]
[342901456,1732199449848,-193.321392,0.00041369,14]
[342901457,1732199449860,-500.0,0.00041369,18]
[342901458,1732199449872,-500.0,0.00041369,18]
[342901459,1732199449885,-500.0,0.00041369,18]
[342901460,1732199449896,-500.0,0.00041369,18]
[342901461,1732199449909,-772.17,0.00041369,18]
[342901462,1732199449921,-1945.98,0.00041369,18]
[342901463,1732199449935,-500.0,0.00041369,18]
[342901464,1732199449946,-500.0,0.00041369,18]
[342901465,1732199449958,-500.0,0.00041369,18]
[342901466,1732199449969,-1235.91,0.00041369,18]
[342901467,1732199449981,-500.0,0.00041369,18]
[342901468,1732199449992,-5549.97,0.00041369,18]
[342901469,1732199450004,-1287.87,0.00041369,18]
[342901470,1732199450016,-500.0,0.00041369,18]
[342901471,1732199450032,-500.0,0.00041369,18]
[342901472,1732199450044,-1814.21,0.00041369,18]
[342901473,1732199450056,-517.01,0.00041369,18]
[342901474,1732199450067,-500.0,0.00041369,18]
[342901475,1732199450079,-500.0,0.00041369,18]
[342901476,1732199450091,-4876.46,0.00041369,18]
[342901477,1732199450102,-1091.75,0.00041369,18]
[342901478,1732199450114,-507.38,0.00041369,18]
[342901479,1732199450125,-367.743508,0.00041369,14]
[342901480,1732199450136,-500.0,0.00041369,18]
[342901481,1732199450147,-367.743508,0.00041369,14]
[342901482,1732199450158,-676.94,0.00041369,18]
[342901483,1732199450168,-2847.03,0.00041369,18]
[342901484,1732199450183,-557.09,0.00041369,18]
[342901485,1732199450193,-3509.44,0.00041369,18]
[342901486,1732199450203,-500.0,0.00041369,18]
[342901487,1732199450214,-3537.99,0.00041369,18]
[342901488,1732199450225,-367.743508,0.00041369,14]
[342901489,1732199450236,-367.743508,0.00041369,14]
[342901490,1732199450247,-500.0,0.00041369,18]
[342901491,1732199450259,-847.95,0.00041369,18]
[342901492,1732199450270,-500.0,0.00041369,18]
[342901493,1732199450282,-1883.13,0.00041369,18]
[342901494,1732199450293,-7181.82,0.00041369,18]
[342901495,1732199450305,-520.42,0.00041369,18]
[342901496,1732199450315,-743.52,0.00041369,18]
[342901497,1732199450327,-500.0,0.00041369,18]
[342901498,1732199450338,-863.4,0.00041369,18]
[342901499,1732199450349,-619.34,0.00041369,18]
[342901500,1732199450360,-500.0,0.00041369,18]
[342901501,1732199450371,-1290.72,0.00041369,18]
[342901502,1732199450382,-2661.51,0.00041369,18]
[342901503,1732199450393,-500.0,0.00041369,18]
[342901504,1732199450405,-500.0,0.00041369,18]
[342901505,1732199450416,-500.0,0.00041369,18]
[342901506,1732199450435,-747.11,0.00041369,18]
[342901507,1732199450446,-950.06,0.00041369,18]
[342901508,1732199450458,-1336.14,0.00041369,18]
[342901509,1732199450469,-500.0,0.00041369,18]
[342901510,1732199450479,-509.02,0.00041369,18]
[342901511,1732199450491,-732.65,0.00041369,18]
[342901512,1732199450502,-527.39,0.00041369,18]
[342901513,1732199450513,-529.36,0.00041369,18]
[342901514,1732199450524,-500.0,0.00041369,18]
[342901515,1732199450535,-1619.03,0.00041369,18]
[342901516,1732199450546,-500.0,0.00041369,18]
[342901517,1732199450558,-1664.0,0.00041369,18]
[342901518,1732199450569,-500.0,0.00041369,18]
[342901519,1732199450580,-500.0,0.00041369,18]
[342901520,1732199450591,-2326.55,0.00041369,18]
[342901521,1732199450602,-639.44,0.00041369,18]
[342901522,1732199450613,-500.0,0.00041369,18]
[342901523,1732199450624,-827.15,0.00041369,18]
[342901524,1732199450635,-813.35,0.00041369,18]
[342901525,1732199450646,-723.15,0.00041369,18]
[342901526,1732199450658,-500.0,0.00041369,18]
[342901527,1732199450669,-583.46,0.00041369,18]
[342901528,1732199450683,-500.0,0.00041369,18]
[342901529,1732199450694,-500.0,0.00041369,18]
[342901530,1732199450705,-576.13,0.00041369,18]
[342901531,1732199450716,-6737.18,0.00041369,18]
[342901532,1732199450727,-616.15,0.00041369,18]
[342901533,1732199450738,-500.0,0.00041369,18]
[342901534,1732199450749,-500.0,0.00041369,18]
[342901535,1732199450762,-500.0,0.00041369,18]
[342901536,1732199450774,-500.0,0.00041369,18]
[342901537,1732199450787,-500.0,0.00041369,18]
[342901538,1732199450798,-1193.64,0.00041369,18]
[342901539,1732199450809,-500.0,0.00041369,120]
[342901540,1732199450820,-500.0,0.00041373,10]
[342901541,1732199450831,-433.47,0.00041425,30]
[342901542,1732199450842,-725.26,0.00041425,30]
[342901543,1732199450853,-304.78,0.00041425,30]
[342901544,1732199450864,-305.62,0.00041425,30]
[342901545,1732199450874,-3006.31263,0.000415,41]
[342901546,1732199450885,-4611.30055461,0.00041543,2]
[342901547,1732199450896,-657.413899,0.00041643,18]
[342901548,1732199450907,-686.88,0.00041643,18]
[342901549,1732199450918,-1132.23,0.00041643,18]
[342901550,1732199450932,-500.0,0.00041643,18]
[342901551,1732199450943,-500.0,0.00041643,18]
[342901552,1732199450954,-500.0,0.00041643,18]
[342901553,1732199450965,-500.0,0.00041643,18]
[342901554,1732199450976,-500.0,0.00041643,18]
[342901555,1732199450987,-500.0,0.00041643,18]
[342901556,1732199450998,-500.0,0.00041643,18]
[342901557,1732199451009,-500.0,0.00041643,18]
[342901558,1732199451019,-500.0,0.00041643,18]
[342901559,1732199451030,-500.0,0.00041643,18]
[342901560,1732199451041,-500.0,0.00041643,18]
[342901561,1732199451052,-500.0,0.00041643,18]
[342901562,1732199451063,-500.0,0.00041643,18]
[342901563,1732199451073,-500.0,0.00041643,18]
[342901564,1732199451084,-500.0,0.00041643,18]
[342901565,1732199451095,-500.0,0.00041643,18]
[342901566,1732199451106,-500.0,0.00041643,18]
[342901567,1732199451116,-500.0,0.00041643,18]
[342901568,1732199451127,-500.0,0.00041643,18]
[342901569,1732199451138,-500.0,0.00041643,18]
[342901570,1732199451149,-500.0,0.00041643,18]
[342901571,1732199451159,-500.0,0.00041643,18]
[342901572,1732199451170,-780.83,0.00041643,18]
[342901573,1732199451187,-778.02,0.00041643,18]
[342901574,1732199451198,-841.3,0.00041643,18]
[342901575,1732199451209,-500.0,0.00041643,18]
[342901576,1732199451220,-500.0,0.00041643,18]
[342901577,1732199451231,-500.0,0.00041643,18]
[342901578,1732199451242,-500.0,0.00041643,18]
[342901579,1732199451253,-644.88,0.00041643,18]
[342901580,1732199451264,-500.74,0.00041643,18]
[342901581,1732199451274,-500.0,0.00041643,18]
[342901582,1732199451285,-232.45507949,0.00041643,18]
[342901583,1732199451296,-500.0,0.00041643,18]
[342901584,1732199451307,-500.0,0.00041643,18]
[342901585,1732199451318,-500.0,0.00041643,18]
[342901586,1732199451329,-500.0,0.00041643,18]
[342901587,1732199451340,-1032.66,0.00041643,18]
[342901588,1732199451351,-500.0,0.00041643,18]
[342901589,1732199451362,-500.0,0.00041643,18]
[342901590,1732199451372,-500.0,0.00041643,18]
[342901591,1732199451383,-608.00917343,0.00041643,18]
[342901592,1732199451394,-500.0,0.00041643,18]
[342901593,1732199451405,-500.0,0.00041643,18]
[342901594,1732199451415,-500.0,0.00041643,18]
[342901595,1732199451429,-500.0,0.00041643,18]
[342901596,1732199451440,-815.66,0.00041643,18]
[342901597,1732199451451,-500.0,0.00041643,18]
[342901598,1732199451461,-500.0,0.00041643,18]
[342901599,1732199451472,-289.88357784,0.00041643,18]
[342901600,1732199451483,-661.83,0.00041643,18]
[342901601,1732199451495,-500.0,0.00041643,18]
[342901602,1732199451506,-500.0,0.00041643,18]
[342901603,1732199451518,-500.0,0.00041643,18]
[342901604,1732199451529,-500.0,0.00041643,18]
[342901605,1732199451540,-500.0,0.00041643,18]
[342901606,1732199451551,-500.0,0.00041643,18]
[342901607,1732199451562,-500.0,0.00041643,18]
[342901608,1732199451574,-1263.69,0.00041643,18]
[342901609,1732199451586,-500.0,0.00041643,18]
[342901610,1732199451597,-500.0,0.00041643,18]
[342901611,1732199451609,-500.0,0.00041643,18]
[342901612,1732199451621,-500.0,0.00041643,18]
[342901613,1732199451632,-500.0,0.00041643,18]
[342901614,1732199451644,-519.82,0.00041643,18]
[342901615,1732199451655,-653.14,0.00041643,18]
[342901616,1732199451666,-500.0,0.00041643,18]
[342901617,1732199451681,-500.0,0.00041643,18]
[342901618,1732199451691,-500.0,0.00041643,18]
[342901619,1732199451701,-500.0,0.00041643,18]
[342901620,1732199451710,-500.0,0.00041643,18]
[342901621,1732199451719,-500.0,0.00041643,18]
[342901622,1732199451728,-503.14,0.00041643,18]
[342901623,1732199451738,-540.62,0.00041643,18]
[342901624,1732199451747,-500.0,0.00041643,18]
[342901625,1732199451760,-500.0,0.00041643,18]
[342901626,1732199451771,-500.0,0.00041643,18]
[342901627,1732199451780,-619.85,0.00041643,18]
[342901628,1732199451790,-500.0,0.00041643,18]
[342901629,1732199451800,-500.0,0.00041643,18]
[342901630,1732199451811,-500.0,0.00041643,18]
[342901631,1732199451819,-587.02,0.00041643,18]
[342901632,1732199451829,-1022.9,0.00041643,18]
[342901633,1732199451838,-500.0,0.00041643,18]
[342901634,1732199451847,-544.47,0.00041643,18]
[342901635,1732199451857,-500.0,0.00041643,18]
[342901636,1732199451867,-500.0,0.00041643,18]
[342901637,1732199451877,-598.89,0.00041643,18]
[342901638,1732199451885,-500.0,0.00041643,18]
[342901639,1732199451895,-500.0,0.00041643,18]
[342901640,1732199451905,-500.0,0.00041643,18]
[342901641,1732199451914,-257.79706116,0.00041643,18]
[342901642,1732199451926,-500.0,0.00041643,18]
[342901643,1732199451935,-575.52,0.00041643,18]
[342901644,1732199451945,-500.0,0.00041643,18]
[342901645,1732199451954,-500.0,0.00041643,18]
[342901646,1732199451962,-752.96,0.00041643,18]
[342901647,1732199451971,-643.32731169,0.00041643,18]
[342901648,1732199451981,-664.75,0.00041643,18]
[342901649,1732199451990,-500.0,0.00041643,18]
[342901650,1732199451999,-500.0,0.00041643,18]
[342901651,1732199452009,-1075.41,0.00041643,18]
[342901652,1732199452019,-500.0,0.00041643,18]
[342901653,1732199452028,-200.0,0.00041643,7]
[342901654,1732199452037,-500.0,0.00041643,18]
[342901655,1732199452047,-500.0,0.00041643,18]
[342901656,1732199452056,-531.22,0.00041643,18]
[342901657,1732199452066,-1262.59,0.00041643,18]
[342901658,1732199452075,-500.0,0.00041643,18]
[342901659,1732199452084,-551.95,0.00041643,18]
[342901660,1732199452093,-1323.6,0.00041643,18]
[342901661,1732199452102,-500.0,0.00041643,18]
[342901662,1732199452112,-976.25,0.00041643,18]
[342901663,1732199452121,-586.24,0.00041643,18]
[342901664,1732199452130,-500.0,0.00041643,18]
[342901665,1732199452139,-500.0,0.00041643,18]
[342901666,1732199452149,-500.0,0.00041643,18]
[342901667,1732199452158,-500.0,0.00041643,7]
[342901668,1732199452169,-500.0,0.00041643,18]
[342901669,1732199452184,-500.0,0.00041643,18]
[342901670,1732199452195,-544.81,0.00041643,18]
[342901671,1732199452205,-500.0,0.00041643,18]
[342901672,1732199452215,-500.0,0.00041643,18]
[342901673,1732199452225,-500.0,0.00041643,18]
[342901674,1732199452235,-1368.0,0.00041643,18]
[342901675,1732199452246,-500.0,0.00041643,18]
[342901676,1732199452256,-617.18,0.00041643,18]
[342901677,1732199452267,-500.0,0.00041643,18]
[342901678,1732199452844,-500.0,0.00041643,18]
[342901679,1732199452865,-500.0,0.00041643,18]
[342901680,1732199452888,-500.0,0.00041643,18]
[342901681,1732199452911,-500.0,0.00041643,18]
[342901682,1732199452923,-500.0,0.00041643,18]
[342901683,1732199452936,-887.9,0.00041643,7]
[342901684,1732199452947,-567.49,0.00041643,18]
[342901685,1732199452957,-500.0,0.00041643,18]
[342901686,1732199452967,-586.87,0.00041643,18]
[342901687,1732199452976,-500.0,0.00041643,18]
[342901688,1732199452986,-500.0,0.00041643,18]
[342901689,1732199452996,-500.0,0.00041643,18]
[342901690,1732199453005,-514.95,0.00041643,18]
[342901691,1732199453014,-500.0,0.00041643,18]
[342901692,1732199453024,-500.0,0.00041643,18]
[342901693,1732199453033,-500.0,0.00041643,18]
[342901694,1732199453042,-500.0,0.00041643,18]
[342901695,1732199453051,-500.0,0.00041643,2]
[342901696,1732199453060,-666.68,0.00041643,18]
[342901697,1732199453070,-500.0,0.00041643,18]
[342901698,1732199453079,-619.95,0.00041643,18]
[342901699,1732199453089,-500.0,0.00041643,18]
[342901700,1732199453099,-1095.65,0.00041643,18]
[342901701,1732199453108,-1201.94,0.00041643,18]
[342901702,1732199453118,-669.92,0.00041643,18]
[342901703,1732199453127,-500.0,0.00041643,18]
[342901704,1732199453137,-500.0,0.00041643,18]
[342901705,1732199453147,-500.0,0.00041643,18]
[342901706,1732199453156,-930.97,0.00041643,18]
[342901707,1732199453166,-500.0,0.00041643,18]
[342901708,1732199453179,-846.58,0.00041643,18]
[342901709,1732199453188,-500.0,0.00041643,18]
[342901710,1732199453198,-1076.99,0.00041643,18]
[342901711,1732199453208,-500.0,0.00041643,18]
[342901712,1732199453218,-598.83,0.00041643,18]
[342901713,1732199453228,-655.07,0.00041643,18]
[342901714,1732199453239,-500.0,0.00041643,18]
[342901715,1732199453249,-790.41,0.00041643,18]
[342901716,1732199453259,-500.0,0.00041643,18]
[342901717,1732199453270,-911.49,0.00041643,18]
[342901718,1732199453280,-500.0,0.00041643,18]
[342901719,1732199453290,-500.0,0.00041643,18]
[342901720,1732199453300,-500.0,0.00041643,18]
[342901721,1732199453311,-1682.08,0.00041643,18]
[342901722,1732199453320,-500.0,0.00041643,18]
[342901723,1732199453329,-1107.76,0.00041643,18]
[342901724,1732199453339,-875.4,0.00041643,18]
[342901725,1732199453350,-1132.01,0.00041643,18]
[342901726,1732199453360,-500.0,0.00041643,18]
[342901727,1732199453369,-623.95,0.00041643,18]
[342901728,1732199453379,-500.0,0.00041643,18]
[342901729,1732199453389,-500.0,0.00041643,18]
[342901730,1732199453399,-500.0,0.00041643,18]
[342901731,1732199453408,-500.0,0.00041643,18]
[342901732,1732199453418,-500.0,0.00041643,18]
[342901733,1732199453432,-500.0,0.00041643,18]
[342901734,1732199453442,-388.67995489,0.00041643,18]
[342901735,1732199453453,-533.69,0.00041643,18]
[342901736,1732199453464,-500.0,0.00041643,18]
[342901737,1732199453474,-920.48,0.00041643,18]
[342901738,1732199453485,-773.68,0.00041643,18]
[342901739,1732199453495,-805.51,0.00041643,18]
[342901740,1732199453504,-500.0,0.00041643,18]
[342901741,1732199453515,-500.0,0.00041643,18]
[342901742,1732199453525,-500.0,0.00041643,18]
[342901743,1732199453536,-526.27,0.00041643,18]
[342901744,1732199453546,-1069.79,0.00041643,18]
[342901745,1732199453556,-683.11,0.00041643,18]
[342901746,1732199453566,-422.55369334,0.00041643,18]
[342901747,1732199453578,-500.0,0.00041643,18]
[342901748,1732199453587,-500.0,0.00041643,18]
[342901749,1732199453597,-500.0,0.00041643,18]
[342901750,1732199453606,-1188.11,0.00041643,18]
[342901751,1732199453616,-1080.92,0.00041643,18]
[342901752,1732199453626,-500.0,0.00041643,18]
[342901753,1732199453636,-500.0,0.00041643,18]
[342901754,1732199453646,-703.8,0.00041643,18]
[342901755,1732199453655,-500.0,0.00041643,18]
[342901756,1732199453665,-527.44,0.00041643,18]
[342901757,1732199453679,-500.0,0.00041643,18]
[342901758,1732199453691,-500.0,0.00041643,18]
[342901759,1732199453702,-900.83,0.00041643,18]
[342901760,1732199453712,-500.0,0.00041643,18]
[342901761,1732199453722,-500.0,0.00041643,18]
[342901762,1732199453732,-500.0,0.00041643,18]
[342901763,1732199453743,-881.44,0.00041643,18]
[342901764,1732199453754,-500.0,0.00041643,18]
[342901765,1732199453769,-500.0,0.00041643,18]
[342901766,1732199453780,-500.0,0.00041643,18]
[342901767,1732199453791,-500.0,0.00041643,18]
[342901768,1732199453804,-151.0,0.00041643,14]
[342901769,1732199453815,-151.0,0.00041643,14]
[342901770,1732199453825,-651.81,0.00041643,18]
[342901771,1732199453836,-500.0,0.00041643,18]
[342901772,1732199453846,-628.57666255,0.00041643,18]
[342901773,1732199453857,-513.53,0.00041643,18]
[342901774,1732199453869,-500.0,0.00041643,18]
[342901775,1732199453879,-500.0,0.00041643,18]
[342901776,1732199453889,-500.0,0.00041643,18]
[342901777,1732199453899,-500.0,0.00041643,18]
[342901778,1732199453909,-592.27,0.00041643,18]
[342901779,1732199453918,-500.0,0.00041643,18]
[342901780,1732199453931,-1444.18,0.00041643,18]
[342901781,1732199453941,-529.9,0.00041643,18]
[342901782,1732199453951,-500.0,0.00041643,18]
[342901783,1732199453961,-203.29074962,0.00041643,18]
[342901784,1732199453970,-500.0,0.00041643,18]
[342901785,1732199453980,-1329.49,0.00041643,18]
[342901786,1732199453989,-500.0,0.00041643,18]
[342901787,1732199453999,-531.84,0.00041643,18]
[342901788,1732199454009,-500.0,0.00041643,18]
[342901789,1732199454018,-239.7658162,0.00041643,18]
[342901790,1732199454028,-500.0,0.00041643,18]
[342901791,1732199454038,-927.48,0.00041643,18]
[342901792,1732199454048,-580.51,0.00041643,18]
[342901793,1732199454058,-500.0,0.00041643,18]
[342901794,1732199454068,-500.0,0.00041643,18]
[342901795,1732199454077,-1042.61,0.00041643,18]
[342901796,1732199454087,-552.74,0.00041643,18]
[342901797,1732199454097,-500.0,0.00041643,18]
[342901798,1732199454107,-539.14,0.00041643,18]
[342901799,1732199454117,-500.0,0.00041643,18]
[342901800,1732199454127,-500.0,0.00041643,18]
[342901801,1732199454136,-500.0,0.00041643,18]
[342901802,1732199454147,-500.0,0.00041643,18]
[342901803,1732199454158,-500.0,0.00041643,18]
[342901804,1732199454168,-440.14,0.00041643,18]
[342901805,1732199454181,-528.42,0.00041643,18]
[342901806,1732199454192,-500.0,0.00041643,18]
[342901807,1732199454202,-500.0,0.00041643,18]
[342901808,1732199454213,-500.0,0.00041643,18]
[342901809,1732199454223,-1433.81,0.00041643,18]
[342901810,1732199454233,-500.0,0.00041643,18]
[342901811,1732199454244,-567.55,0.00041643,18]
[342901812,1732199454254,-1338.66,0.00041643,18]
[342901813,1732199454263,-500.0,0.00041643,18]
[342901814,1732199454274,-500.0,0.00041643,18]
[342901815,1732199454283,-1410.19,0.00041643,18]
[342901816,1732199454293,-625.730996,0.00041643,18]
[342901817,1732199454303,-500.0,0.00041643,18]
[342901818,1732199454312,-322.01301073,0.00041643,18]
[342901819,1732199454322,-699.66,0.00041643,18]
[342901820,1732199454331,-500.0,0.00041643,18]
[342901821,1732199454341,-500.0,0.00041643,18]
[342901822,1732199454351,-500.0,0.00041643,18]
[342901823,1732199454361,-500.0,0.00041643,18]
[342901824,1732199454371,-500.0,0.00041643,18]
[342901825,1732199454381,-500.0,0.00041643,18]
[342901826,1732199454391,-643.83,0.00041643,18]
[342901827,1732199454400,-500.0,0.00041643,18]
[342901828,1732199454409,-500.0,0.00041643,18]
[342901829,1732199454419,-500.0,0.00041643,18]
[342901830,1732199454431,-500.0,0.00041643,18]
[342901831,1732199454443,-500.0,0.00041643,18]
[342901832,1732199454453,-500.0,0.00041643,18]
[342901833,1732199454464,-500.0,0.00041643,18]
[342901834,1732199454474,-500.0,0.00041643,18]
[342901835,1732199454484,-563.28,0.00041643,18]
[342901836,1732199454499,-500.0,0.00041643,18]
[342901837,1732199454508,-715.43,0.00041643,18]
[342901838,1732199454518,-500.0,0.00041643,18]
[342901839,1732199454528,-500.0,0.00041643,18]
[342901840,1732199454539,-1239.95,0.00041643,18]
[342901841,1732199454549,-525.39,0.00041643,18]
[342901842,1732199454560,-500.0,0.00041643,18]
[342901843,1732199454569,-500.0,0.00041643,18]
[342901844,1732199454579,-500.0,0.00041643,18]
[342901845,1732199454588,-500.0,0.00041643,18]
[342901846,1732199454598,-500.0,0.00041643,18]
[342901847,1732199454608,-500.0,0.00041643,18]
[342901848,1732199454618,-500.0,0.00041643,18]
[342901849,1732199454627,-849.0,0.00041643,18]
[342901850,1732199454637,-1580.19,0.00041643,18]
[342901851,1732199454647,-500.0,0.00041643,18]
[342901852,1732199454657,-500.0,0.00041643,18]
[342901853,1732199454667,-500.0,0.00041643,18]
[342901854,1732199454681,-189.1491424,0.00041643,18]
[342901855,1732199454691,-500.0,0.00041643,18]
[342901856,1732199454701,-500.0,0.00041643,18]
[342901857,1732199454711,-500.0,0.00041643,18]
[342901858,1732199454722,-576.19,0.00041643,18]
[342901859,1732199454732,-500.0,0.00041643,18]
[342901860,1732199454742,-500.0,0.00041643,18]
[342901861,1732199454752,-1184.06,0.00041643,18]
[342901862,1732199454765,-627.25,0.00041643,18]
[342901863,1732199454775,-500.0,0.00041643,18]
[342901864,1732199454785,-1046.52,0.00041643,18]
[342901865,1732199454797,-782.8,0.00041643,18]
[342901866,1732199454808,-500.0,0.00041643,18]
[342901867,1732199454818,-500.0,0.00041643,18]
[342901868,1732199454827,-500.0,0.00041643,18]
[342901869,1732199454841,-831.01,0.00041643,18]
[342901870,1732199454850,-500.0,0.00041643,18]
[342901871,1732199454860,-500.0,0.00041643,18]
[342901872,1732199454870,-500.0,0.00041643,18]
[342901873,1732199454880,-724.43,0.00041643,18]
[342901874,1732199454890,-500.0,0.00041643,18]
[342901875,1732199454900,-592.08,0.00041643,18]
[342901876,1732199454910,-500.0,0.00041643,18]
[342901877,1732199454919,-500.0,0.00041643,18]
[342901878,1732199454932,-500.0,0.00041643,18]
[342901879,1732199454942,-500.0,0.00041643,18]
[342901880,1732199454952,-781.59,0.00041643,18]
[342901881,1732199454963,-500.0,0.00041643,18]
[342901882,1732199454972,-500.0,0.00041643,18]
[342901883,1732199454983,-500.0,0.00041643,18]
[342901884,1732199454993,-720.08,0.00041643,18]
[342901885,1732199455003,-500.0,0.00041643,18]
[342901886,1732199455013,-568.73,0.00041643,18]
[342901887,1732199455023,-500.0,0.00041643,18]
[342901888,1732199455033,-2351.59,0.00041643,18]
[342901889,1732199455043,-501.92,0.00041643,18]
[342901890,1732199455053,-831.45,0.00041643,18]
[342901891,1732199455063,-257.61122484,0.00041643,18]
[342901892,1732199455072,-500.0,0.00041643,18]
[342901893,1732199455082,-1224.29,0.00041643,18]
[342901894,1732199455092,-923.7,0.00041643,18]
[342901895,1732199455102,-725.08,0.00041643,18]
[342901896,1732199455112,-411.73261347,0.00041643,18]
[342901897,1732199455121,-500.0,0.00041643,18]
[342901898,1732199455131,-162.54205794,0.00041643,18]
[342901899,1732199455141,-637.17,0.00041643,18]
[342901900,1732199455151,-556.73,0.00041643,18]
[342901901,1732199455161,-500.0,0.00041643,18]
[342901902,1732199455172,-500.0,0.00041643,18]
[342901903,1732199455187,-582.70342419,0.00041643,18]
[342901904,1732199455197,-519.94,0.00041643,18]
[342901905,1732199455207,-456.23554273,0.00041643,18]
[342901906,1732199455217,-500.0,0.00041643,18]
[342901907,1732199455227,-347.77028084,0.00041643,18]
[342901908,1732199455238,-500.0,0.00041643,18]
[342901909,1732199455248,-1025.56,0.00041643,18]
[342901910,1732199455258,-1343.62,0.00041643,18]
[342901911,1732199455269,-500.0,0.00041643,18]
[342901912,1732199455278,-500.0,0.00041643,18]
[342901913,1732199455288,-583.5,0.00041643,18]
[342901914,1732199455494,-500.0,0.00041643,18]
[342901915,1732199455517,-500.0,0.00041643,18]
[342901916,1732199455527,-500.0,0.00041643,18]
[342901917,1732199455537,-754.87,0.00041643,18]
[342901918,1732199455547,-1321.86,0.00041643,18]
[342901919,1732199455558,-500.0,0.00041643,18]
[342901920,1732199455567,-957.89,0.00041643,18]
[342901921,1732199455577,-500.0,0.00041643,18]
[342901922,1732199455587,-1606.25,0.00041643,18]
[342901923,1732199455597,-500.0,0.00041643,18]
[342901924,1732199455606,-500.0,0.00041643,18]
[342901925,1732199455616,-500.0,0.00041643,18]
[342901926,1732199455626,-500.0,0.00041643,18]
[342901927,1732199455636,-500.0,0.00041643,18]
[342901928,1732199455646,-500.0,0.00041643,18]
[342901929,1732199455656,-500.0,0.00041643,18]
[342901930,1732199455666,-500.0,0.00041643,18]
[342901931,1732199455680,-1198.83,0.00041643,18]
[342901932,1732199455690,-1224.56,0.00041643,18]
[342901933,1732199455699,-500.0,0.00041643,18]
[342901934,1732199455709,-1944.0,0.00041643,18]
[342901935,1732199455719,-500.0,0.00041643,18]
[342901936,1732199455729,-500.0,0.00041643,18]
[342901937,1732199455738,-844.23,0.00041643,18]
[342901938,1732199455748,-500.0,0.00041643,18]
[342901939,1732199455760,-10961.69445394,0.00041643,18]
[342901940,1732199456171,-1342.71416378,0.00041643,18]
[342901941,1732199456193,-310.40957991,0.00041643,18]
[342901942,1732199456204,-6806.4158765,0.00041643,18]
[342901943,1732199456216,-1371.67592587,0.00041643,18]
[342901944,1732199456226,-500.0,0.00041643,18]
[342901945,1732199456235,-915.43,0.00041643,18]
[342901946,1732199456245,-2900.43,0.00041643,18]
[342901947,1732199456255,-675.94837083,0.00041643,18]
[342901948,1732199456266,-709.40535554,0.00041643,18]
[342901949,1732199456278,-86.97627363,0.00041643,18]
[342901950,1732199456288,-500.0,0.00041643,18]
[342901951,1732199456297,-500.0,0.00041643,18]
[342901952,1732199456307,-1351.71637497,0.00041643,18]
[342901953,1732199456319,-268.89362503,0.00041643,18]
[342901954,1732199456328,-951.6,0.00041643,18]